Cogmind - Beta 17 @@@ ROGUE MODE // 2026.08.02 @ 15:43:19 Player: unq Result: Destroyed by Y-54 Guardian with Gatling Laser Performance ------------- Evolutions (3) 1500 Regions Visited (9) 1800 Robots Destroyed (183) 915 Value Destroyed (6096) 6096 Prototype IDs (16) 320 Alien Tech Used (0) 0 Bonus (2384) 2384 TOTAL SCORE: 13015 Bonus ------- High Alert Combat Kills 754 Follower Combat Kills 348 Entered Garrisons 400 Used RIF Installer 1000 Friendly Fire -118 Cogmind --------- Core Integrity 0/700 Matter 108/300 Energy 57/100 System Corruption 0% Temperature Cool (6) Movement Core (100) Ox1 Location -7/Storage Parts ------- > --- POWER (1) -------- (None) > --- PROPULSION (5) --- (None) > --- UTILITY (5) ------ Visual Processing Unit Improved Signal Interpreter Microactuators Relay Coupler [NC] (6) > --- WEAPON (2) ------- Great Axe > --- INVENTORY (5) ---- Medium Storage Unit Experimental Sensor Array Heavy Mace Peak State ------------ > --- POWER ------------ Light Nuclear Core > --- PROPULSION ------- Cesium-ion Thruster Cesium-ion Thruster Surge Thruster Surge Thruster Cooled VTOL Module > --- UTILITY ---------- Medium Storage Unit Visual Processing Unit Experimental Sensor Array Improved Signal Interpreter Relay Coupler [NC] > --- WEAPON ----------- Heavy Ion Cannon Remote Datajack > --- INVENTORY -------- Light Nuclear Core Surge Thruster Surge Thruster Microactuators Improved Light Armor Plating System Shield Cooled Particle Cannon Gauss Rifle Gauss Rifle Rocket Launcher [Rating: 47] Favorites ----------- Power Cooled Ion Engine Engine Cooled Ion Engine Power Core Nuclear Core Propulsion Light Treads Treads Light Treads Leg Titanium Leg Flight Unit Surge Thruster Utility High-capacity Storage Unit Device Seismic Detector Storage High-capacity Storage Unit Processor Core Analyzer Hackware Relay Coupler [NC] Protection Hardened Light Armor Plating Weapon Improved Medium Laser Energy Gun Improved Medium Laser Energy Cannon Heavy Plasma Cannon Ballistic Gun Heavy Assault Rifle Launcher Rocket Launcher Special Weapon Remote Datajack Impact Weapon Heavy Flail Slashing Weapon Katana Special Melee Weapon Improved Datajack Build | -11 -10 -10 -9 -8 -8 -8 -8 -7 -7 ------- Run | Yrd Mat Min Mat Mat Gar Mat Gar Fac Sto Slots Evolved 6 | . . . 2 2 . . . 2 . Power . | . . . . . . . . . . Propulsion 3 | . . . 1 1 . . . 1 . Utility 3 | . . . 1 1 . . . 1 . Weapon . | . . . . . . . . . . Parts Attached 145 | 6 12 2 24 10 20 20 9 30 12 Power 13 | 1 2 . 1 . . 1 1 4 3 Engine 8 | 1 2 . 1 . . 1 . 1 2 Core 5 | . . . . . . . 1 3 1 Reactor . | . . . . . . . . . . Propulsion 50 | 2 . . 13 4 5 7 6 11 2 Treads 26 | 2 . . 13 4 5 2 . . . Leg 13 | . . . . . . 5 6 . 2 Wheel . | . . . . . . . . . . Hover . | . . . . . . . . . . Flight 11 | . . . . . . . . 11 . Utility 43 | 1 5 1 6 4 4 7 1 11 3 Device 14 | . 2 1 2 1 . 2 1 3 2 Storage 7 | 1 2 . . . . . . 4 . Processor 5 | . . . . 1 . 2 . 2 . Hackware 3 | . . . 1 . . 1 . 1 . Protection 14 | . 1 . 3 2 4 2 . 1 1 Artifact . | . . . . . . . . . . Weapon 39 | 2 5 1 4 2 11 5 1 4 4 Energy Gun 12 | 1 3 . 2 1 4 1 . . . Energy Cannon 3 | . . . . . . . 1 2 . Ballistic Gun 12 | 1 1 1 1 . 3 2 . 1 2 Ballistic Cannon . | . . . . . . . . . . Launcher 2 | . . . . . 2 . . . . Special Weapon 3 | . 1 . . . 1 . . 1 . Impact Weapon 4 | . . . 1 1 . 1 . . 1 Slashing Weapon 2 | . . . . . . 1 . . 1 Piercing Weapon . | . . . . . . . . . . Special Melee Weapon 1 | . . . . . 1 . . . . Unidentified Prototypes 9 | . 1 1 3 . . . . 3 1 Parts Lost 34 | . . . . . 3 2 12 1 16 Power 5 | . . . . . . . 1 . 4 Propulsion 16 | . . . . . 1 . 5 1 9 Utility 6 | . . . . . 2 1 3 . . Weapon 7 | . . . . . . 1 3 . 3 Highest Loss Streak 8 | . . . . . 1 1 4 1 8 To Critical Strikes . | . . . . . . . . . . Average Backups 17 | 1 14 20 19 19 19 19 19 9 8 Power . | . . 1 1 1 1 1 . . . Propulsion 2 | . 1 1 3 2 1 5 5 2 . Utility 6 | . 5 7 7 7 6 6 6 2 2 Weapon 7 | . 7 10 7 7 9 6 5 3 3 Tool/Special . | . . . . . . . . . . Unused Backups 35 | . 10 2 10 3 . 2 1 5 2 Power 4 | . . . 3 1 . . . . . Propulsion 4 | . 3 . . . . . . 1 . Utility 14 | . 4 1 2 1 . 2 1 2 1 Weapon 13 | . 3 1 5 1 . . . 2 1 Tool/Special . | . . . . . . . . . . Average Slot Usage (%) 98 | . 99 100 99 99 99 99 95 97 87 Engine 9 | . 14 14 10 9 9 9 1 . 2 Core 1 | . . . . . . . 7 6 3 Treads 22 | . 27 28 33 35 35 5 . . . Leg 8 | . . . . . . 30 33 1 2 Flight 2 | . . . . . . . . 35 29 Device 11 | . 10 1 10 12 17 15 14 12 4 Storage 10 | . 14 14 11 9 9 9 9 6 4 Processor 2 | . . . . 2 . 1 9 9 15 Protection 7 | . 3 12 10 12 9 9 1 . 3 Energy Gun 10 | . 17 . 19 17 13 7 5 . . Ballistic Gun 6 | . 9 26 . . . 7 7 . . Impact Weapon 1 | . . . 2 . 2 1 . . 1 Slashing Weapon 1 | . . . . . . 1 3 6 6 Peak Build Rating 47 | 6 15 20 23 32 32 37 37 47 47 Average Rating 23 | 5 11 13 20 26 23 31 33 43 36 On Entrance 21 | . 6 13 14 21 32 23 36 26 46 Avg Prop Armor Cover (%) 6 | . . . . . . . . . 6 Naked Turns . | . . . . . . . . . . Heaviest Build 64 | 10 56 56 61 64 62 62 62 61 25 Greatest Support 82 | 40 40 40 60 80 80 82 68 30 28 Greatest Overweight (x) 6 | . 1 1 1 1 . 1 6 2 1 Average Overweight (x) . | . . 1 . . . . . . . Largest Inventory Capacity 20 | 8 20 20 20 20 20 20 20 20 10 Average Capacity 18 | 7 15 20 20 20 20 20 20 9 8 Most Carried 20 | 7 20 20 20 20 20 20 20 18 10 Average Carried 17 | 1 14 19 19 19 19 19 19 8 8 Final Capacity 20 | 8 20 20 20 20 20 20 20 10 5 Final Carried 20 | 7 20 20 20 20 20 20 17 10 3 Class Distribution -------------------- 79% | Mutant 13% | Scavenger-Mutant 4% | Sprinter Dominant Class ---------------- Mutant | -10/Materials Mutant | -10/Mines Mutant | -9/Materials Mutant | -8/Materials Scavenger-Mutant | -8/Garrison Mutant | -8/Materials Mutant | -8/Garrison Sprinter | -7/Factory Mutant | -7/Storage Resources | -11 -10 -10 -9 -8 -8 -8 -8 -7 -7 ----------- Run | Yrd Mat Min Mat Mat Gar Mat Gar Fac Sto Matter Collected 4385 | 246 289 261 448 150 697 889 585 660 160 Remotely . | . . . . . . . . . . Salvage Created 6738 | 124 342 185 1359 759 1393 1190 704 431 251 Parts 382 | 8 17 16 77 28 54 81 48 33 20 Haulers Intercepted 12 | . 1 . 2 3 . 3 . 3 . Recyclers Shooed 7 | . 1 . 2 3 . . . . 1 Parts Field Recycled . | . . . . . . . . . . Retrieved Matter . | . . . . . . . . . . Parts Self-Destructed . | . . . . . . . . . . Prevented . | . . . . . . . . . . Parts Restored . | . . . . . . . . . . Kills | -11 -10 -10 -9 -8 -8 -8 -8 -7 -7 ------- Run | Yrd Mat Min Mat Mat Gar Mat Gar Fac Sto Combat Hostiles Destroyed 133 | . 6 8 25 13 25 23 25 1 7 Melee 6 | . . . 1 . . 1 1 1 2 Guns 93 | . 6 8 22 11 16 18 12 . . AOE 24 | . . . . . 6 4 10 . 4 Classes Destroyed 17 | 2 5 . 2 1 3 4 . . . Worker 10 | . 1 . 1 1 . 2 . 5 . Builder 5 | . . . . 1 . 2 . . 2 Tunneler 6 | 2 . . . . . . . 4 . Hauler 12 | . 1 . 2 3 . 3 . 3 . Recycler 5 | 1 1 . 1 . . 1 . 1 . Operator 3 | . . . 2 . . . . 1 . Watcher 8 | . 1 . 4 1 . 2 . . . Swarmer 33 | . 3 5 2 3 2 7 11 . . Cutter 2 | . . . . . 2 . . . . Grunt 67 | . 3 3 16 8 16 5 12 . 4 Brawler 1 | . . . . . . 1 . . . Duelist 3 | . . . . . 1 1 . . 1 Protector 1 | . . . . . . 1 . . . Sentry 17 | . . . 7 2 2 5 . . 1 Specialist 2 | . . . . . . 2 . . . Hunter 2 | . . . . . . 1 . . 1 Programmer 5 | . . . . . 2 . 2 1 . Thug 1 | . . . . . 1 . . . . Best Kill Streak 10 | 2 3 3 5 6 4 10 4 3 4 Combat Bots Only 6 | . 3 3 5 3 4 6 4 1 4 Max Kills in Single Turn 3 | 1 2 2 2 1 1 3 3 1 2 Gunslinging 1 | . . 1 1 . . . 1 . . Exploded 3 | . . . . . 1 2 3 . 2 Melee 1 | . . . 1 . . 1 1 1 1 Uniques/NPCs Destroyed . | . . . . . . . . . . Combat | -11 -10 -10 -9 -8 -8 -8 -8 -7 -7 -------- Run | Yrd Mat Min Mat Mat Gar Mat Gar Fac Sto Hostile Shots Fired 1026 | . 41 68 119 57 138 105 144 32 322 Missed 350 | . 12 20 27 15 44 30 41 17 144 Hits 676 | . 29 48 92 42 94 75 103 15 178 Melee 8 | . . . . . 5 . . . 3 Projectile 668 | . 29 48 92 42 89 75 103 15 175 AOE 5 | . . . . . 3 . . 2 . Critical Strikes 20 | . . . . 1 7 3 5 1 3 Damage Taken 8878 | . 294 493 1150 591 1724 1096 1357 435 1738 Core 1562 | . 57 89 167 79 98 229 135 174 534 Absorbed by Shields . | . . . . . . . . . . Ignored by Resistances 60 | . . . . . . 60 . . . Regen/Repaired (Parts) 455 | . 135 . 236 . . 84 . . . Core Remaining (%) 50 | 100 . 41 58 . . . 1 . . Volleys Fired 509 | 12 38 41 83 51 109 81 65 5 24 Largest 2 | 2 2 2 2 2 2 2 2 1 1 Hottest 115 | 60 112 100 112 112 112 91 115 90 90 Shots Fired 917 | 24 74 74 166 100 197 148 105 5 24 Gun 849 | 24 72 66 166 100 178 144 93 . 6 Cannon 11 | . . . . . . . 4 1 6 Launcher 29 | . . . . . 10 3 8 . 8 Special 28 | . 2 8 . . 9 1 . 4 4 Kinetic 249 | 12 27 61 . . 17 81 45 . 6 Thermal 536 | 12 47 13 166 100 104 56 31 1 6 Explosive 23 | . . . . . 4 3 8 . 8 Electromagnetic 91 | . . . . . 63 7 21 . . Robot Hit Streak 23 | 9 7 6 15 18 23 8 7 3 5 Robot Miss Streak 5 | 3 4 4 5 2 5 4 4 1 2 Penetration Max 1 | . . . . . . 1 . . . Secondary Targets 14 | . 2 3 4 1 2 . 2 . . Max Gunslinging Chain 1 | . 1 1 1 1 1 . 1 . . Shots Hit Robots 650 | 16 39 39 114 78 145 99 61 32 27 Core Hits 310 | 5 15 11 42 30 74 53 47 10 23 Critical Kills 2 | . . 1 . . . . 1 . . Critical Parts Destroyed 2 | . . . 1 . . . . . 1 Critical Strikes 32 | . 2 1 10 7 3 2 2 1 4 Burn 24 | . 2 . 9 7 3 2 1 . . Meltdown 1 | . . . . . . . 1 . . Destroy 1 | . . 1 . . . . . . . Smash 2 | . . . 1 . . . . . 1 Sever 4 | . . . . . . . . 1 3 Melee Attacks 184 | . . . 11 1 26 24 31 57 34 Impact 51 | . . . 11 1 19 8 . . 12 Slashing 126 | . . . . . . 16 31 57 22 Piercing . | . . . . . . . . . . Sneak Attacks 30 | . . . 1 . 7 4 . 16 2 Combat Hostiles 1 | . . . . . . . . . 1 Follow-up Attacks 3 | . . . . . . . . . 3 Damage Inflicted 15409 | 149 463 607 2170 1405 3131 2352 2075 1636 1421 Guns 9269 | 149 463 571 1916 1337 2288 1574 915 . 56 Cannons 65 | . . . . . . . 65 . . Explosions 3095 | . . . . . 843 475 999 . 778 Melee 2869 | . . . 247 . . 303 96 1636 587 Ramming 111 | . . 36 7 68 . . . . . Kinetic 2123 | 79 143 505 . . 209 828 303 . 56 Thermal 6439 | 70 320 66 1916 1337 1618 631 481 . . Explosive 2399 | . . . . . 191 475 955 . 778 Electromagnetic 1468 | . . . . . 1113 115 240 . . Impact 460 | . . . 247 . . 80 . . 133 Slashing 2409 | . . . . . . 223 96 1636 454 Piercing . | . . . . . . . . . . Highest Corruption 11 | . . . 1 . 4 5 11 . . Average Corruption 5 | . . . 1 . 3 4 10 . . Corruption Purged . | . . . . . . . . . . Corruption Blocked . | . . . . . . . . . . Effects 141 | . . . 6 . 28 46 61 . . Message Errors 27 | . . . 2 . 5 8 12 . . Matter Fused 29 | . . . 1 . 6 13 9 . . Heat Flow Errors 11 | . . . . . 2 5 4 . . Energy Discharges 21 | . . . 2 . 3 7 9 . . Parts Fused 2 | . . . . . 2 . . . . Data Loss (minor) 25 | . . . 1 . 5 6 13 . . Data Loss (major) 12 | . . . . . 2 5 5 . . Misfires 4 | . . . . . . . 4 . . Alerts 5 | . . . . . 3 1 1 . . Weapon Failures 5 | . . . . . . 1 4 . . Overload Shots 3 | . . . . . . . . . 3 Overflow Damage 659 | . . . 118 . 30 31 11 342 127 Projectiles . | . . . . . . . . . . Explosions 58 | . . . . . 30 . 11 . 17 Melee 601 | . . . 118 . . 31 . 342 110 Knockbacks 4 | . . 1 1 2 . . . . . Impact 4 | . . 1 1 2 . . . . . Kinetic . | . . . . . . . . . . Secondary . | . . . . . . . . . . Self-Inflicted Damage 247 | . . . . . 119 . . . 128 Shots 8 | . . . . . 3 . . . 5 Rammed 16 | . . 4 3 9 . . . . . Targets Rammed 18 | . . 4 3 11 . . . . . Kicked . | . . . . . . . . . . Crushed 2 | . . . . 2 . . . . . Highest Temperature 288 | 20 288 162 168 21 175 209 196 44 86 Average Temperature 49 | 9 60 86 36 5 58 54 77 2 16 Received Heat Transfer 3012 | . 87 150 453 306 705 360 396 18 537 Siege Activations . | . . . . . . . . . . Martial Activations . | . . . . . . . . . . Shielding Activations . | . . . . . . . . . . Robots Disrupted . | . . . . . . . . . . Combat Hostiles . | . . . . . . . . . . Robots Corrupted 5 | . . . 1 . 2 . 1 . 1 Combat Hostiles 4 | . . . . . 2 . 1 . 1 Parts Fried 8 | . . . 2 . 4 1 1 . . Impact Corruptions 5 | . . . 3 . . . . . 2 Robots Melted 7 | . . . 2 2 2 . 1 . . Combat Hostiles 6 | . . . 2 2 1 . 1 . . Parts Melted 25 | . 2 . 13 7 1 . 2 . . Heat Transferred 14755 | 150 854 148 4773 3404 3123 1517 786 . . Parts Sabotaged . | . . . . . . . . . . Parts Stolen . | . . . . . . . . . . Parts Stripped . | . . . . . . . . . . Power Chain Reactions 6 | . . . . . 5 . 1 . . Alert | -11 -10 -10 -9 -8 -8 -8 -8 -7 -7 ------- Run | Yrd Mat Min Mat Mat Gar Mat Gar Fac Sto Maximum Alert Level 4 | . . . 2 1 4 2 3 2 1 Low Security (%) 47 | 100 100 100 57 88 7 . . . 98 Level 1 13 | . . . 26 11 39 2 . 40 1 Level 2 23 | . . . 16 . 15 97 20 59 . Level 3 13 | . . . . . 31 . 79 . . Level 4 . | . . . . . 6 . . . . Level 5 . | . . . . . . . . . . High Security . | . . . . . . . . . . Max Security . | . . . . . . . . . . Peak Influence 1172 | 10 75 70 423 221 1172 620 1085 569 200 Initial 571 | . . 3 10 162 83 571 399 569 169 Average 314 | 1 8 12 184 126 569 512 791 462 133 Influence Increases 5482 | 15 255 290 860 420 1259 808 806 277 492 Destroy 0b10 Robot/C 2880 | . 120 220 520 260 640 460 500 20 140 Destroy 0b10 Robot/NC 265 | 15 20 . 50 30 10 60 . 70 10 Destroy Leader 570 | . 24 50 162 68 20 142 50 14 40 Allied During Kill 60 | . . 13 1 . 44 2 . . . Successful Hack 250 | . 28 . 33 16 28 28 16 77 24 Select Force Hacks 30 | . 30 . . . . . . . . Disable Machine 195 | . . . 30 30 30 30 . 15 60 Anti-Garrison Action 500 | . . . . . 350 . 150 . . Destroy Structure 372 | . 3 7 4 1 137 41 90 21 68 Partial Spotted 90 | . . . . . . . . 45 45 Lose Combat Pursuer 270 | . 30 . 60 15 . 45 . 15 105 Influence Decreases 5311 | 15 245 272 503 676 216 1365 336 988 695 Entered New Map 1832 | . . 7 18 223 46 601 216 516 205 Time Decay 2324 | 15 235 265 450 303 . 574 . 302 180 Lost Part 340 | . . . . . 30 20 120 10 160 Lost Ally 215 | . 10 . 35 . 140 20 . 10 . Purge Threat 600 | . . . . 150 . 150 . 150 150 Squads Dispatched 21 | . 2 1 4 4 . 4 . 3 3 Investigation 8 | . 2 1 2 1 . . . 1 1 Extermination 2 | . . . . . . . . 1 1 Reinforcement 8 | . . . 2 2 . 3 . . 1 Assault 1 | . . . . . . 1 . . . Garrison 2 | . . . . 1 . . . 1 . Intercept . | . . . . . . . . . . Searches Triggered . | . . . . . . . . . . Construction Impeded 2 | . . . . . . 1 . . 1 Haulers Reinforced . | . . . . . . . . . . Active Scanning Responses . | . . . . . . . . . . Cargo Convoy Interrupts . | . . . . . . . . . . Stealth | -11 -10 -10 -9 -8 -8 -8 -8 -7 -7 --------- Run | Yrd Mat Min Mat Mat Gar Mat Gar Fac Sto Distress Signals 14 | . 1 . 5 4 . 3 . . 1 Communications Jammed . | . . . . . . . . . . Distress Signals . | . . . . . . . . . . Times Spotted 217 | . 11 10 46 21 34 41 23 7 24 Peak Tracking Total 9 | . 5 3 5 7 4 7 4 3 9 Tactical Retreats 14 | . 2 . 3 1 . 3 . 1 4 Traps | -11 -10 -10 -9 -8 -8 -8 -8 -7 -7 ------- Run | Yrd Mat Min Mat Mat Gar Mat Gar Fac Sto Traps Triggered 7 | . . . . . 4 1 2 . . Indirectly 3 | . . . . . 3 . . . . Trap Hack Attempts . | . . . . . . . . . . Triggered . | . . . . . . . . . . Disarmed . | . . . . . . . . . . Reprogrammed . | . . . . . . . . . . Reused . | . . . . . . . . . . Traps Extracted . | . . . . . . . . . . Installed . | . . . . . . . . . . Triggered . | . . . . . . . . . . Machines | -11 -10 -10 -9 -8 -8 -8 -8 -7 -7 ---------- Run | Yrd Mat Min Mat Mat Gar Mat Gar Fac Sto Machines Disabled 17 | . . . 2 2 5 2 1 1 4 Max in Single Turn 1 | . . . 1 1 1 1 1 1 1 Garrison Access 2 | . . . . . . . . 2 . Garrison Relay 5 | . . . . . 4 . 1 . . Machines Repaired . | . . . . . . . . . . Machines Dismantled . | . . . . . . . . . . Machines Sabotaged . | . . . . . . . . . . Overloaded Fab Kills . | . . . . . . . . . . Hacking | -11 -10 -10 -9 -8 -8 -8 -8 -7 -7 --------- Run | Yrd Mat Min Mat Mat Gar Mat Gar Fac Sto Machines Accessed 61 | . 7 2 12 5 4 10 2 14 5 Terminals 43 | . 4 1 8 4 4 7 2 8 5 Fabricators 1 | . . . . . . . . 1 . Repair Stations 4 | . 1 . 2 . . 1 . . . Recycling Units 4 | . 2 . 1 . . . . 1 . Scanalyzers 4 | . . . 1 . . 1 . 2 . Garrison Access 4 | . . . . 1 . 1 . 2 . Total Hacks 142 | . 16 3 39 11 6 24 4 26 13 Successful 64 | . 10 1 18 6 3 9 1 12 4 Failed 78 | . 6 2 21 5 3 15 3 14 9 Catastrophic 23 | . 2 1 4 2 2 4 1 4 3 Database Lockouts . | . . . . . . . . . . Manual 43 | . 9 2 13 2 . 6 1 3 7 Terminals 93 | . 9 2 19 8 6 17 4 15 13 Fabricators 1 | . . . . . . . . 1 . Repair Stations 16 | . 4 . 8 . . 4 . . . Recycling Units 8 | . 3 . 2 . . . . 3 . Scanalyzers 17 | . . . 10 . . 2 . 5 . Garrison Access 6 | . . . . 3 . 1 . 2 . Terminal Hacks 29 | . 4 1 5 5 3 4 1 4 2 Part Schematic 1 | . 1 . . . . . . . . Robot Analysis 1 | . . . 1 . . . . . . Prototype ID Bank 3 | . . . 1 1 . . . 1 . Open Door 4 | . . 1 . . 1 . . . 2 Branch Access Points 1 | . . . . 1 . . . . . Emergency Access Points 1 | . . . . . 1 . . . . Terminal Index 1 | . . . . . . . . 1 . Unreport Threat 2 | . . . . 1 . 1 . . . Locate Traps 9 | . 2 . 2 2 . 2 . 1 . Hauler Manifests 2 | . 1 . 1 . . . . . . Zone Layout 2 | . . . . . . 1 . 1 . Patrol Navigation 1 | . . . . . 1 . . . . Security Stations 1 | . . . . . . . 1 . . Fabricator Hacks 1 | . . . . . . . . 1 . Network Status 1 | . . . . . . . . 1 . Repair Station Hacks 14 | . 4 . 6 . . 4 . . . Scan Component 7 | . 2 . 3 . . 2 . . . Repair 7 | . 2 . 3 . . 2 . . . Recycling Unit Hacks 1 | . . . . . . . . 1 . Retrieve Components 1 | . . . . . . . . 1 . Scanalyzer 9 | . . . 6 . . . . 3 . Insert Component 4 | . . . 3 . . . . 1 . Analyze 4 | . . . 3 . . . . 1 . Retrieve Study 1 | . . . . . . . . 1 . Garrison Access Hacks 4 | . . . . 1 . 1 . 2 . Unlock Access 2 | . . . . 1 . 1 . . . Seal Access 2 | . . . . . . . . 2 . Unauthorized Hacks 6 | . 2 . 1 . . . . 1 2 Terminals 5 | . 1 . 1 . . . . 1 2 Track 2 | . . . . . . . . . 2 Assimilate 3 | . 1 . 1 . . . . 1 . Fabricators . | . . . . . . . . . . Repair Stations . | . . . . . . . . . . Recycling Units 1 | . 1 . . . . . . . . Tunnel 1 | . 1 . . . . . . . . Scanalyzers . | . . . . . . . . . . Garrison Access . | . . . . . . . . . . Data Cores Recovered 2 | . . . 1 . . . . 1 . Used . | . . . . . . . . . . Hacking Detections 48 | . 5 1 11 5 2 8 2 10 4 Full Trace Events 8 | . 1 1 3 1 . . . 1 1 Feedback Events 1 | . . . 1 . . . . . . Corruption 1 | . . . 1 . . . . . . Feedback Blocked . | . . . . . . . . . . Robot Schematics Acquired . | . . . . . . . . . . Robots Built . | . . . . . . . . . . Authchips . | . . . . . . . . . . Time . | . . . . . . . . . . Total Robot Build Rating . | . . . . . . . . . . Part Schematics Acquired 2 | . 1 . 1 . . . . . . Parts Built . | . . . . . . . . . . Authchips . | . . . . . . . . . . Time . | . . . . . . . . . . Total Part Build Rating . | . . . . . . . . . . Part Studies Acquired 1 | . . . . . . . . 1 . Parts Repaired 7 | . 2 . 3 . . 2 . . . Time 354 | . 52 . 219 . . 83 . . . Parts Recycled . | . . . . . . . . . . Recycled Matter . | . . . . . . . . . . Retrieved Matter . | . . . . . . . . . . Retrieved Components 2 | . . . . . . . . 2 . Parts Scanalyzed 2 | . . . 1 . . . . 1 . Part Schematics Acquired 1 | . . . 1 . . . . . . Parts Damaged 2 | . . . 1 . . . . 1 . Bothacking | -11 -10 -10 -9 -8 -8 -8 -8 -7 -7 ------------ Run | Yrd Mat Min Mat Mat Gar Mat Gar Fac Sto Used RIF Installer 2 | . . . . . 2 . . . . Command Fork 1 | . . . . . 1 . . . . Robots Hacked 5 | . . . . . . 1 . 2 2 Non-combat 4 | . . . . . . . . 2 2 Combat 1 | . . . . . . 1 . . . Robot Hacks Applied 6 | . . . . . . 1 . 2 3 purge_threat 2 | . . . . . . . . 1 1 block_reporting 2 | . . . . . . . . 1 1 streamctrl_low 1 | . . . . . . . . . 1 formatsys_high 1 | . . . . . . 1 . . . Relay Couplers Released 25 | . . . . . 22 . 3 . . Machine Destruction 21 | . . . . . 18 . 3 . . Programmers 4 | . . . . . 4 . . . . Attached 2 | . . . . . . 1 . 1 . Fabnet Peak Effective % . | . . . . . . . . . . Robots Rewired 6 | . . . . . 6 . . . . Allies Hacked . | . . . . . . . . . . Hacks Repelled . | . . . . . . . . . . Allies | -11 -10 -10 -9 -8 -8 -8 -8 -7 -7 -------- Run | Yrd Mat Min Mat Mat Gar Mat Gar Fac Sto Total Allies 16 | . 1 3 1 . 8 1 . 1 1 Largest Group 5 | . 1 3 2 . 5 1 . 1 1 Highest-Rated Group 100 | . 10 40 20 . 100 15 . 26 12 Highest-Rated Ally 39 | . 10 16 12 . 39 15 . 26 12 Total Orders 2 | . . . 2 . . . . . . STAY 1 | . . . 1 . . . . . . FOLLOW 1 | . . . 1 . . . . . . Ally Attacks 88 | . . 15 10 . 57 6 . . . Total Damage 1387 | . . 165 90 . 1046 86 . . . Kills 13 | . . 3 1 . 7 2 . . . Allies Corrupted . | . . . . . . . . . . Allies Melted . | . . . . . . . . . . Intel | -11 -10 -10 -9 -8 -8 -8 -8 -7 -7 ------- Run | Yrd Mat Min Mat Mat Gar Mat Gar Fac Sto Active Infowar (turns) 7804 | . 1308 138 1333 256 1720 1371 671 639 368 Optics 987 | . . . . . . . . 619 368 Sensors 915 | . . 2 . 174 2 . . 634 103 Terrain 1 | . . . . . . . . 1 . Seismic 6619 | . 1308 136 1333 82 1718 1371 671 . . Robot Analysis Total 1 | . . . 1 . . . . . . Derelict Logs Recovered 1 | . . 1 . . . . . . . Drone Launches . | . . . . . . . . . . Drone Recoveries . | . . . . . . . . . . Exploration | -11 -10 -10 -9 -8 -8 -8 -8 -7 -7 ------------- Run | Yrd Mat Min Mat Mat Gar Mat Gar Fac Sto Turns Passed 13241 | 121 1758 1794 2632 712 1917 1755 1506 678 368 Spaces Moved 7449 | 47 778 677 1178 304 848 897 727 1572 421 Core 50 | 2 . . . . . . . . 48 Treads 3947 | 45 778 677 1178 304 848 117 . . . Legs 1545 | . . . . . . 780 727 11 27 Wheels . | . . . . . . . . . . Hover . | . . . . . . . . . . Flight 1907 | . . . . . . . . 1561 346 Fastest Speed 20 | 50 160 240 160 160 160 130 127 23 20 Average Speed 132 | 155 197 240 170 161 160 133 141 24 33 Slowest Speed 540 | 160 240 240 240 240 160 200 540 260 120 Overloaded Moves 2 | . . . . . . . . . 2 Propulsion Burnouts . | . . . . . . . . . . Robots Hopped 4 | . . . . . . . . 1 3 Potential Cave-ins . | . . . . . . . . . . Cave-ins Triggered . | . . . . . . . . . . Exploration Rate (%) 57 | 3 69 98 74 39 86 66 62 41 35 Regions Visited 9 Branch Regions 2 Pre-discovered Areas 1 | . 1 . . . . . . . . Known Exits Taken 4 | . . . 1 1 . 1 . 1 . Unknown Exits Taken 3 | 1 1 1 . . . . . . . Scrap Searched 1 | . . 1 . . . . . . . Spaces Dug 71 | . 2 8 2 . 3 18 7 20 11 Terrain Destroyed 240 | . 2 8 2 . 62 40 34 21 71 Melee 58 | . . . 2 . 3 18 7 20 8 Projectile 15 | . 2 8 . . . . . 1 4 AOE 167 | . . . . . 59 22 27 . 59 Terrain Rammed . | . . . . . . . . . . Walls Destroyed . | . . . . . . . . . . Machines Disabled . | . . . . . . . . . . Actions | -11 -10 -10 -9 -8 -8 -8 -8 -7 -7 --------- Run | Yrd Mat Min Mat Mat Gar Mat Gar Fac Sto Total 9639 | 71 929 752 1622 419 1173 1263 1050 1781 579 Wait 882 | . 55 14 240 20 127 163 171 32 60 Move 7434 | 46 777 676 1177 304 847 897 726 1569 415 Hop 4 | . . . . . . . . 1 3 Pick Up 110 | 7 23 3 24 8 4 16 6 18 1 Fast Attach 66 | 6 5 2 7 . 1 9 3 24 9 Attach 44 | . 1 . 4 3 4 6 8 9 9 Detach 22 | . 2 1 1 . 2 4 . 6 6 Swap 196 | . 12 6 34 12 44 38 25 13 12 Drop 162 | . 16 5 38 9 8 25 5 47 9 Fire 509 | 12 38 41 83 51 109 81 65 5 24 Melee 181 | . . . 11 1 26 24 31 57 31 Ram . | . . . . . . . . . . Kick . | . . . . . . . . . . Crush 18 | . . 4 3 11 . . . . . Escape Stasis 10 | . . . . . . . 10 . . Rewire 1 | . . . . . 1 . . . . Trap . | . . . . . . . . . . Miscellaneous . | . . . . . . . . . . Route ------- -11/Scrapyard -10/Materials (discovered 4 exits: *Mat x2 / *Min / [*Sub]) -10/Mines (discovered 3 exits: *Mat x2 / [*Sub]) -9/Materials (discovered 3 exits: *Mat x3) -8/Materials -8/Garrison (discovered 2 exits: *Mat x2) -8/Materials (discovered 3 exits: *Fac x2 / Gar) -8/Garrison (discovered 2 exits: *Fac x2) -7/Factory (discovered 6 exits: *Fac x3 / *Sto / [*Low x2]) -7/Storage History --------- Turn | Location | Event 6 | -11/Scrapyard | Discovered new exit (range 15) 122 | -11/Scrapyard | Entered Materials 314 | -10/Materials | Build established: Mutant 666 | -10/Materials | Discovered new exit (range 9) 780 | -10/Materials | Discovered new exit (range 3) 1017 | -10/Materials | Discovered new exit (range 9) 1657 | -10/Materials | Repaired Lgt. Treads 1685 | -10/Materials | Repaired Lgt. Treads 1864 | -10/Materials | Discovered new exit (range 8) 1880 | -10/Materials | Entered Mines 2142 | -10/Mines | Learned location of 1 exit from Materials 2219 | -10/Mines | Discovered new exit (range 6) 2250 | -10/Mines | Discovered new exit (range 10) 2383 | -10/Mines | Core integrity fell below 50% 2560 | -10/Mines | Assisted by bots powering up and referring to "LRC-V3" 2750 | -10/Mines | Discovered new exit (range 10) 3117 | -10/Mines | Found a damaged Exp. Sensor Array with a note attached 3122 | -10/Mines | Found Prototype Device 3122 | -10/Mines | Identified Exp. Sensor Array 3628 | -10/Mines | Met a Derelict who couldn't figure out how to use a Trap Extractor 3674 | -10/Mines | Entered Materials 3674 | -9/Materials | Accompanied by 2 allies 3674 | -9/Materials | Evolved 2 slots: Propulsion x1, Utility x1 3675 | -9/Materials | Identified exit to Materials 4114 | -9/Materials | Discovered exit to Materials (range 16) 4345 | -9/Materials | Repaired Hrd. Light Armor Plating 4553 | -9/Materials | Repaired Broken Exp. Sensor Array? 5541 | -9/Materials | Repaired Cld. Ion Engine 5853 | -9/Materials | Discovered exit to Materials (range 11) 6306 | -9/Materials | Entered another Materials area 6306 | -8/Materials | Evolved 2 slots: Propulsion x1, Utility x1 6850 | -8/Materials | Garrison activated, responded to threat 7018 | -8/Materials | Identified exit to Garrison 7018 | -8/Materials | Entered Garrison 7060 | -8/Garrison | Triggered checkpoint 7142 | -8/Garrison | Triggered checkpoint 7246 | -8/Garrison | Garrison Relay disabled 7446 | -8/Garrison | Lost 3 allies 7752 | -8/Garrison | Triggered checkpoint 7908 | -8/Garrison | Installed Relay Interface Framework 7985 | -8/Garrison | Discovered new exit (range 11) 7998 | -8/Garrison | Triggered checkpoint 8052 | -8/Garrison | Triggered checkpoint 8064 | -8/Garrison | Garrison Relay disabled 8130 | -8/Garrison | Rescued a captive Derelict 8132 | -8/Garrison | Rescued a captive Derelict 8198 | -8/Garrison | Build established: Scavenger-Mutant 8344 | -8/Garrison | Triggered checkpoint 8424 | -8/Garrison | Garrison Relay disabled 8492 | -8/Garrison | Discovered new exit (range 15) 8584 | -8/Garrison | Triggered checkpoint 8638 | -8/Garrison | Triggered checkpoint 8716 | -8/Garrison | Triggered checkpoint 8718 | -8/Garrison | Triggered checkpoint 8778 | -8/Garrison | Expanded RIF knowledge: Command Fork 8799 | -8/Garrison | Garrison Relay disabled 8935 | -8/Garrison | Entered Materials 9304 | -8/Materials | Repaired Imp. EM Shotgun 9337 | -8/Materials | Repaired Rocket Launcher 9448 | -8/Materials | Build established: Mutant 9714 | -8/Materials | Core integrity fell below 50% 9867 | -8/Materials | Discovered new exit (range 4) 10525 | -8/Materials | Discovered new exit (range 9) 10535 | -8/Materials | First assault squad dispatched 10690 | -8/Materials | Identified exit to Garrison 10690 | -8/Materials | Entered Garrison 10753 | -8/Garrison | Triggered checkpoint 10784 | -8/Garrison | Garrison Relay disabled 10888 | -8/Garrison | Core integrity fell below 20% 10897 | -8/Garrison | System corruption reached 10% 10933 | -8/Garrison | Lost 4 parts (1p1n1u1w) 10937 | -8/Garrison | Triggered checkpoint 11013 | -8/Garrison | Discovered new exit (range 14) 11121 | -8/Garrison | Triggered checkpoint 11517 | -8/Garrison | Triggered checkpoint 11584 | -8/Garrison | Triggered checkpoint 11679 | -8/Garrison | Discovered new exit (range 14) 11739 | -8/Garrison | Learned Factory security intel 11832 | -8/Garrison | Triggered checkpoint 11888 | -8/Garrison | Lost 3 parts (1n1u1w) 12054 | -8/Garrison | Lost 4 parts (3n1w) 12196 | -8/Garrison | Entered Factory 12196 | -7/Factory | Evolved 2 slots: Propulsion x1, Utility x1 12464 | -7/Factory | Discovered new exit (range 18) 12488 | -7/Factory | Discovered new exit (range 7) 12494 | -7/Factory | Discovered new exit (range 7) 12522 | -7/Factory | Build established: Sprinter 12705 | -7/Factory | Discovered new exit (range 16) 12730 | -7/Factory | Identified exit to Storage 12746 | -7/Factory | Discovered new exit (range 9) 12820 | -7/Factory | Discovered new exit (range 14) 12826 | -7/Factory | Identified exit to Factory 12834 | -7/Factory | Garrison activated, responded to threat 12874 | -7/Factory | Entered Storage 13022 | -7/Storage | Lost 3 parts (2p1n) 13179 | -7/Storage | Lost 4 parts (4n) 13182 | -7/Storage | Core integrity fell below 50% 13211 | -7/Storage | Core integrity fell below 20% 13238 | -7/Storage | Lost 8 parts (2p3n3w) 13242 | -7/Storage | Destroyed by Y-54 Guardian with Gatling Laser Last Messages --------------- to Storage Zone 2A. 13189_ Acquired Hvy. Mace. 13193_ Aluminum Leg destroyed. 13194_ Destroyed Microactuators. 13194_ L-41 Fighter system corrupted by crushing effect. 13194_ L-41 Fighter destroyed. 13198_ Katana destroyed. 13201_ Lgt. Nuclear Core destroyed. 13203_ Imp. Carbon-fiber Leg destroyed. 13204_ Lgt. Ion Engine destroyed. 13205_ G-47 Trooper destroyed. 13205_ Destroyed Gatling Laser. 13205_ G-47 Trooper destroyed. 13205_ Cesium-ion Thruster+ destroyed. 13207_ H-55 Commando destroyed. 13207_ Rocket Launcher destroyed. 13209_ Critical hit (Burn: +37). 13238_ Emergency Access malfunctions. 13239_ Cld. VTOL Module destroyed. 13241_ Y-54 Guardian Lgt. Treads severed. Map ----- +----------------------------------------------------+ | ???????????????????????????????????# %=* ##### | | ???????????????????###?????????????# [ ##### | | ?????????????????? ????????????# ] | | ?????????????????? ???????????## # "" """ | | ?????????????????? ???????????### # "/%!!" | | ?????????????????? ?????????????# # ! [!" | | ???????????????????? ????????????# # " """ | | ????????????????????? ????????????# # | | ??????????????????????# ???????????# # | | ??????????????????????# #??????????# # | | ??????????????????????# ?????????# ####### # | | ??????????????????????# ????????## ####??# | | ????????????????####### ######### #T#### | | ?????????????? [## | | ????????????????# ###### #### | | ????????????????# #????#####??### | | ????????????????+ #????????????# | | ????????????????# ########### #????????????## | | ????????????????#??????????????# #?????????????## | | ???????????????????????????????# #??????????????## | | ???????????????????????????????# #???????????????? | | ???????????????????????????????# #???????????????? | | ???????????????????????????????# #???????????????? | | ??????????????????????????######/#####???????????? | | ??????????????????????#####; p #???????????? | | ??????????????????????# Y@ / #???????????? | | ??????????????????????###### #???????????? | | ???????????????????????????# #???????????? | | ???????????????????????????###########???????????? | | | | | | | | | | | | | | | | | | | | | | | | | | | | | | | | | | | | | | | | | | | +----------------------------------------------------+ Best States ------------- Heat Dissipation 53 Coolant Potential 50 Energy Generation 18 Energy Capacity 310 Matter Stores 329 Matter Capacity 400 Sight Range 18 Robot Scan Range 20 Terrain Scan Density 10 Armor Coverage 300 Resistance: TH 10 Melee Speed Boost 20 Evasion (%) 65 Core Analysis 6 Recoil Reduction 4 Offensive Hacking 10 Relay Coupler Types 1 Relay Coupler Value 36 Item Schematics ----------------- Hcp. Storage Unit | -10/Materials | Hacked Exp. Sensor Array | -9/Materials | Scanalyzed Robot Schematics ------------------ None Fabricated ------------ Nothing Repaired ---------- Lgt. Treads | 43% | -10/Materials Lgt. Treads | 60% | -10/Materials Hrd. Light Armor Plating | 23% | -9/Materials Exp. Sensor Array | 62% | -9/Materials | Broken Cld. Ion Engine | 20% | -9/Materials Imp. EM Shotgun | 32% | -8/Materials Rocket Launcher | 47% | -8/Materials Studied --------- Cesium-ion Thruster | -7/Factory | Hacked Alien Tech Used ----------------- None Achievements -------------- None Challenges ------------ None Game ------ Seed CommSpikedCanceller Manual? 0 Play Time 02:57:20 Cumulative 400.0 hours Start 2026.07.25 @ 22:31:44 End 2026.08.02 @ 15:43:19 Sessions 13 Manual Loads 0 Difficulty Rogue Special Mode None Game No. 116 Rogue 116 Adventurer 0 Explorer 0 Win Type - Total 3 Types 3/0/0/0/0/0/0/0/0/0 Lore% 72 Gallery% 62 Achievement% 53 Wizard Run 0 Options --------- Layout 0 ASCII 1 Keyboard 1 Movement Arrows Keybinds 0 Fullscreen 1 Font 24/Smallcaps Map View 76x50 Zoom Use 0% Tactical HUD 1 Map Filters NONE Filters NONE Steam 1 RUN: 4d57bb97-f719-4afb-8b62-ac190bc8c532